fUST/lending_fUST_20240624
["ID","MTS","AMOUNT","RATE_DAILY","PERIOD"]
[330285566,1719232182357,273.37336231,9.9e-05,2]
[330285567,1719232190678,273.37336231,9.9e-05,2]
[330285568,1719232199023,273.37336231,9.9e-05,2]
[330285569,1719232207213,273.37336231,9.9e-05,2]
[330285570,1719232216391,273.37336231,9.9e-05,2]
[330285571,1719232224709,273.37336231,9.9e-05,2]
[330285598,1719232232296,-250.0,0.00014146,2]
[330285599,1719232232305,-734.01825298,0.00014417,2]
[330285616,1719232233082,273.37336231,9.9e-05,2]
[330285831,1719232241834,-2880.44558117,0.00014417,2]
[330285833,1719232241844,-500.0,0.00015122,2]
[330285835,1719232241853,-300.0,0.00015138,2]
[330285836,1719232241862,-300.0,0.00015138,2]
[330285838,1719232241871,-157.19006853,0.00015152,2]
[330285841,1719232241881,-609.6855361,0.00015159,2]
[330285842,1719232241890,-531.11088939,0.00015166,2]
[330285845,1719232241900,-2130.44693837,0.00015167,2]
[330285847,1719232241910,-609.68553607,0.00015363,2]
[330285849,1719232241919,-842.64804764,0.00015439,2]
[330285851,1719232241928,-609.68553607,0.00015568,2]
[330285853,1719232241938,-2416.91747958,0.00015615,2]
[330285855,1719232241947,-205.6831939,0.00015681,2]
[330285857,1719232241959,-154.80649189,0.00015745,2]
[330285859,1719232241968,-154.80649189,0.00015771,2]
[330285861,1719232241977,-609.68553607,0.00015772,2]
[330285863,1719232241986,-207.71530322,0.00015784,2]
[330285865,1719232241995,-207.71530322,0.00015784,2]
[330285866,1719232242003,-669.14707461,0.00015879,2]
[330285879,1719232242110,273.37336231,9.9e-05,2]
[330286757,1719232250834,273.37336231,9.9e-05,2]
[330287622,1719232259517,273.37336231,9.9e-05,2]
[330288212,1719232267914,273.37336231,9.9e-05,2]
[330288239,1719232276054,273.37336231,9.9e-05,2]
[330288240,1719232284465,273.37336231,9.9e-05,2]
[330288241,1719232288366,842.64804764,0.00012,2]
[330288242,1719232289037,154.80649189,0.00012,2]
[330288243,1719232289651,157.19006853,0.00012,2]
[330288244,1719232293335,273.37336231,9.9e-05,2]
[330288245,1719232296039,154.80649189,0.00012,2]
[330288246,1719232299376,842.64804764,0.00012,2]
[330288247,1719232301772,273.37336231,9.9e-05,2]
[330288248,1719232304651,157.19006853,0.00012,2]
[330288249,1719232309888,273.37336231,9.9e-05,2]
[330288250,1719232318239,273.37336231,9.9e-05,2]
[330288251,1719232326987,273.37336231,9.9e-05,2]
[330288252,1719232336388,842.64804764,0.00012,2]
[330288253,1719232337387,273.37336231,9.9e-05,2]
[330288254,1719232339667,157.19006853,0.00012,2]
[330288255,1719232343050,164.74640672,0.00012,2]
[330288256,1719232345465,273.37336231,9.9e-05,2]
[330288257,1719232346054,154.80649189,0.00012,2]
[330288258,1719232354338,273.37336231,9.9e-05,2]
[330288259,1719232354832,216.81,0.00010959,2]
[330288260,1719232362443,273.37336231,9.9e-05,2]
[330288261,1719232365334,180.67,0.00010959,2]
[330288262,1719232366299,155.18334395,0.00012,2]
[330288263,1719232370183,172.14990098,0.00012,2]
[330288264,1719232371346,273.37336231,9.9e-05,2]
[330288265,1719232375845,150.56,0.00010959,2]
[330288266,1719232376688,228.19072842,0.00012,2]
[330288267,1719232379624,273.37336231,9.9e-05,2]
[330288268,1719232386396,752.84,0.00010959,2]
[330288269,1719232387976,273.37336231,9.9e-05,2]
[330288270,1719232394336,3000.0,0.000225,30]
[330288271,1719232396408,273.37336231,9.9e-05,2]
[330288272,1719232404719,273.37336231,9.9e-05,2]
[330288273,1719232412775,273.37336231,9.9e-05,2]
[330288274,1719232421975,273.37336231,9.9e-05,2]
[330288275,1719232429960,273.37336231,9.9e-05,2]
[330288276,1719232439254,273.37336231,9.9e-05,2]
[330288277,1719232447418,273.37336231,9.9e-05,2]
[330288278,1719232455863,273.37336231,9.9e-05,2]
[330288279,1719232465021,273.37336231,9.9e-05,2]
[330288280,1719232474290,273.37336231,9.9e-05,2]
[330288281,1719232483153,273.37336231,9.9e-05,2]
[330288282,1719232491163,273.37336231,9.9e-05,2]
[330288283,1719232499475,273.37336231,9.9e-05,2]
[330288284,1719232508423,273.37336231,9.9e-05,2]
[330288285,1719232511823,1328.9299237,0.0001384,2]
[330288286,1719232516842,273.37336231,9.9e-05,2]
[330288287,1719232525001,273.37336231,9.9e-05,2]
[330288288,1719232533915,273.37336231,9.9e-05,2]
[330288289,1719232541992,273.37336231,9.9e-05,2]
[330288290,1719232550596,273.37336231,9.9e-05,2]
[330288292,1719232559231,273.37336231,9.9e-05,2]
[330288293,1719232566351,234.409933,0.00013715,2]
[330288294,1719232568435,273.37336231,9.9e-05,2]
[330288295,1719232576718,273.37336231,9.9e-05,2]
[330288298,1719232586386,273.37336231,9.9e-05,2]
[330288310,1719232595457,273.37336231,9.9e-05,2]
[330288322,1719232604198,273.37336231,9.9e-05,2]
[330288323,1719232612747,273.37336231,9.9e-05,2]
[330288324,1719232621169,273.37336231,9.9e-05,2]
[330288327,1719232631611,273.37336231,9.9e-05,2]
[330288329,1719232639909,273.37336231,9.9e-05,2]
[330288330,1719232648673,273.37336231,9.9e-05,2]
[330288331,1719232657088,273.37336231,9.9e-05,2]
[330288332,1719232665324,273.37336231,9.9e-05,2]
[330288334,1719232673507,273.37336231,9.9e-05,2]
[330288335,1719232681811,273.37336231,9.9e-05,2]
[330288336,1719232691380,273.37336231,9.9e-05,2]
[330288337,1719232699645,273.37336231,9.9e-05,2]
[330288338,1719232708435,273.37336231,9.9e-05,2]
[330288339,1719232716872,273.37336231,9.9e-05,2]
[330288340,1719232725069,273.37336231,9.9e-05,2]
[330288341,1719232734355,273.37336231,9.9e-05,2]
[330288342,1719232742966,273.37336231,9.9e-05,2]
[330288343,1719232751895,273.37336231,9.9e-05,2]
[330288344,1719232760803,273.37336231,9.9e-05,2]
[330288345,1719232769142,273.37336231,9.9e-05,2]
[330288347,1719232777278,273.37336231,9.9e-05,2]
[330288348,1719232781822,2238.6534957,0.00013706,2]
[330288349,1719232785629,273.37336231,9.9e-05,2]
[330288350,1719232785696,1587.8804483,0.00013706,2]
[330288351,1719232793835,273.37336231,9.9e-05,2]
[330288352,1719232803608,273.37336231,9.9e-05,2]
[330288353,1719232812997,273.37336231,9.9e-05,2]
[330288354,1719232821788,273.37336231,9.9e-05,2]
[330288355,1719232829937,273.37336231,9.9e-05,2]
[330288356,1719232838937,273.37336231,9.9e-05,2]
[330288357,1719232847668,273.37336231,9.9e-05,2]
[330288358,1719232856270,273.37336231,9.9e-05,2]
[330288359,1719232864778,273.37336231,9.9e-05,2]
[330288361,1719232873695,273.37336231,9.9e-05,2]
[330288362,1719232882457,273.37336231,9.9e-05,2]
[330288363,1719232891341,273.37336231,9.9e-05,2]
[330288364,1719232899713,273.37336231,9.9e-05,2]
[330288365,1719232908397,273.37336231,9.9e-05,2]
[330288366,1719232916795,273.37336231,9.9e-05,2]
[330288367,1719232925480,273.37336231,9.9e-05,2]
[330288368,1719232933973,860.6391918,0.00013785,2]
[330288369,1719232934140,273.37336231,9.9e-05,2]
[330288370,1719232942864,273.37336231,9.9e-05,2]
[330288371,1719232944647,375.723742,0.0001372,2]
[330288372,1719232951685,273.37336231,9.9e-05,2]
[330288373,1719232960095,273.37336231,9.9e-05,2]
[330288374,1719232963882,3049.679057,0.00013719,2]
[330288375,1719232971207,273.37336231,9.9e-05,2]
[330288376,1719232980728,273.37336231,9.9e-05,2]
[330288377,1719232981294,526.85721157,0.00012,2]
[330288378,1719232989734,273.37336231,9.9e-05,2]
[330288380,1719232995194,3000.0,0.000225,30]
[330288381,1719232998258,273.37336231,9.9e-05,2]
[330288382,1719233006328,273.37336231,9.9e-05,2]
[330288383,1719233014716,273.37336231,9.9e-05,2]
[330288384,1719233023931,273.37336231,9.9e-05,2]
[330288385,1719233032699,273.37336231,9.9e-05,2]
[330288386,1719233041183,273.37336231,9.9e-05,2]
[330288387,1719233049528,273.37336231,9.9e-05,2]
[330288390,1719233059287,273.37336231,9.9e-05,2]
[330288391,1719233067775,273.37336231,9.9e-05,2]
[330288392,1719233077006,273.37336231,9.9e-05,2]
[330288393,1719233085216,273.37336231,9.9e-05,2]
[330288394,1719233094284,273.37336231,9.9e-05,2]
[330288395,1719233102513,273.37336231,9.9e-05,2]
[330288396,1719233111474,273.37336231,9.9e-05,2]
[330288398,1719233119962,273.37336231,9.9e-05,2]
[330288399,1719233129557,273.37336231,9.9e-05,2]
[330288400,1719233138395,273.37336231,9.9e-05,2]
[330288401,1719233147046,-3000.0,0.0002251,30]
[330288402,1719233147300,273.37336231,9.9e-05,2]
[330288405,1719233155619,273.37336231,9.9e-05,2]
[330288406,1719233165046,273.37336231,9.9e-05,2]
[330288407,1719233173255,273.37336231,9.9e-05,2]
[330288408,1719233181680,273.37336231,9.9e-05,2]
[330288409,1719233188515,49642.34650989,0.00012,2]
[330288410,1719233188539,50357.65349011,0.00012,2]
[330288411,1719233189826,273.37336231,9.9e-05,2]
[330288412,1719233198314,273.37336231,9.9e-05,2]
[330288413,1719233207125,273.37336231,9.9e-05,2]
[330288414,1719233215783,273.37336231,9.9e-05,2]
[330288415,1719233224357,273.37336231,9.9e-05,2]
[330288416,1719233234272,273.37336231,9.9e-05,2]
[330288417,1719233243380,273.37336231,9.9e-05,2]
[330288418,1719233252720,194.42048181,9.9e-05,2]
[330288423,1719233342186,154.89587407,0.00012,2]
[330288424,1719233366986,100000.0,0.0001,2]
[330288430,1719233415964,656.32,0.00010959,2]
[330288431,1719233426715,633.3,0.00010959,2]
[330288450,1719233433737,-154.80649189,0.00014101,2]
[330288451,1719233433747,-154.80649189,0.00014109,2]
[330288453,1719233433757,-159.71453487,0.00014109,2]
[330288455,1719233433767,-155.31954051,0.00014134,2]
[330288456,1719233433776,-955.36780467,0.00014136,2]
[330288458,1719233433786,-157.19006853,0.00014136,2]
[330288460,1719233433795,-197.31490802,0.00014334,2]
[330288462,1719233433805,-531.11088939,0.00014763,2]
[330288464,1719233433814,-370.07279665,0.00014922,2]
[330288465,1719233433886,-1494.06827445,0.00014922,2]
[330288466,1719233433896,-1000.0,0.00014999,2]
[330288468,1719233433906,-300.0,0.00014999,2]
[330288470,1719233433916,-300.0,0.00014999,2]
[330288471,1719233433925,-2416.91747958,0.00015,2]
[330288472,1719233433934,-32677.19292645,0.00015,2]
[330288474,1719233433946,-5120.16795895,0.00015,2]
[330288475,1719233437454,527.75,0.00010959,2]
[330288476,1719233437708,500.0,0.00012656,2]
[330288479,1719233438911,-1001.64510084,0.00014545,2]
[330288480,1719233439343,500.0,0.00013478,2]
[330288484,1719233440884,-3688.72198565,0.00014545,2]
[330288485,1719233440894,-1631.25034853,0.00015,2]
[330288486,1719233443328,179.64943207,0.00012121,2]
[330288537,1719233447943,-500.0,0.000143,2]
[330288538,1719233447953,-6500.0,0.00015,2]
[330288540,1719233447964,-4085.67757982,0.00015,2]
[330288541,1719233447976,-641.10139433,0.00015009,2]
[330288542,1719233448008,439.79,0.00010959,2]
[330288549,1719233448513,292.33986916,0.00012121,2]
[330288550,1719233458674,366.49,0.00010959,2]
[330288551,1719233469193,305.41,0.00010959,2]
[330288552,1719233471475,194.20294406,0.00012121,2]
[330288553,1719233479744,254.51,0.00010959,2]
[330288554,1719233483438,310.96483901,0.00012121,2]
[330288555,1719233484854,157.19006853,0.00012121,2]
[330288556,1719233488707,531.11088939,0.00013283,2]
[330288557,1719233489730,157.19006853,0.00013283,2]
[330288558,1719233490285,212.09,0.00010959,2]
[330288559,1719233500817,370.17,0.00010959,2]
[330288560,1719233508503,292.33986916,0.00013283,2]
[330288561,1719233511418,308.47,0.00010959,2]
[330288562,1719233521975,257.06,0.00010959,2]
[330288563,1719233526598,157.74467629,0.00013283,2]
[330288565,1719233529734,200.50513567,0.00013283,2]
[330288566,1719233532488,214.22,0.00010959,2]
[330288568,1719233535810,531.11088939,0.00013283,2]
[330288569,1719233543041,178.51,0.00010959,2]
[330288570,1719233553540,892.6,0.00010959,2]
[330288572,1719233556844,500.0,0.00012656,2]
[330288573,1719233558440,500.0,0.00013478,2]
[330288576,1719233579514,292.33986916,0.00013283,2]
[330288577,1719233585661,474.40230334,0.00013283,2]
[330288578,1719233597311,3000.0,0.000225,30]
[330288579,1719233604088,24900.0,0.00013854,2]
[330288582,1719233801375,4687.63524749,0.00013854,2]
[330288583,1719233865527,2234.5203477,0.0002501,59]
[330288584,1719234073050,38206.2778538,0.0001377,2]
[330288585,1719234107065,292.33986916,0.0001377,2]
[330288586,1719234192865,3000.0,0.000225,30]
[330288587,1719234197068,292.33986916,0.0001377,2]
[330288590,1719234291436,19828.87855192,0.00013882,2]
[330288591,1719234291464,162.62776148,0.00013882,2]
[330288592,1719234301565,292.33986916,0.0001377,2]
[330288593,1719234317056,157.894736,0.00013699,2]
[330288594,1719234408578,292.33986916,0.00013699,2]
[330288595,1719234526301,-677.26605194,0.00014324,2]
[330288596,1719234526355,-28.31573792,0.00014324,2]
[330288597,1719234526386,-648.95031402,0.00014416,2]
[330288598,1719234526432,-225.2572141,0.00014416,2]
[330288599,1719234534578,292.33986916,0.00013699,2]
[330288600,1719234564586,292.33986916,0.00013699,2]
[330288619,1719234633820,-479.15652314,0.00014318,2]
[330288629,1719234639436,-1636.10632637,0.00014318,2]
[330288630,1719234639446,-248.75722648,0.00014755,2]
[330289435,1719234648620,-583.07815696,0.00014755,2]
[330294789,1719234793716,3000.0,0.000225,30]
[330294826,1719235014934,157.894736,0.00013699,2]
[330294828,1719235126473,-1674.52181687,0.00014527,2]
[330294829,1719235126493,-5278.8466527,0.00014539,2]
[330294830,1719235126514,-300.0,0.00014543,2]
[330294831,1719235126535,-300.0,0.00014543,2]
[330294832,1719235126554,-72446.63153043,0.00014544,2]
[330294834,1719235151590,10000.0,0.000225,30]
[330294835,1719235165199,-300.0,0.00014542,2]
[330294836,1719235165220,-42180.60213988,0.00014543,2]
[330294837,1719235165242,-7519.39786012,0.00014544,2]
[330294838,1719235171701,10000.0,0.000225,30]
[330294839,1719235183732,10000.0,0.000225,30]
[330294840,1719235197465,10000.0,0.000225,30]
[330294842,1719235219680,3102.17,0.00014,2]
[330294844,1719235285271,500.0,0.00012656,2]
[330294845,1719235305988,181.53915781,0.00014,2]
[330294850,1719235394003,3000.0,0.000225,30]
[330294852,1719235500600,11000.0,0.00013805,2]
[330294853,1719235596415,166.855949,0.00013743,2]
[330294854,1719235619499,814.0,0.00022493,120]
[330294855,1719235620079,814.0,0.00022493,120]
[330294856,1719235620571,814.0,0.00022493,120]
[330294857,1719235621054,814.0,0.00022493,120]
[330294858,1719235621541,814.0,0.00022493,120]
[330294859,1719235622046,814.0,0.00022493,120]
[330294860,1719235623357,814.0,0.00022493,120]
[330294861,1719235624002,814.0,0.00022493,120]
[330294862,1719235624545,814.0,0.00022493,120]
[330294863,1719235625107,814.0,0.00022493,120]
[330294864,1719235625596,814.0,0.00022493,120]
[330294865,1719235626116,814.0,0.00022493,120]
[330294866,1719235626608,814.0,0.00022493,120]
[330294867,1719235627092,814.0,0.00022493,120]
[330294868,1719235627576,814.0,0.00022493,120]
[330294869,1719235628058,814.0,0.00022493,120]
[330294870,1719235628551,814.0,0.00022493,120]
[330294871,1719235629039,814.0,0.00022493,120]
[330294872,1719235629548,814.0,0.00022493,120]
[330294873,1719235631488,814.0,0.00022493,120]
[330294874,1719235632713,153.0,0.00022493,120]
[330294875,1719235633278,153.0,0.00022493,120]
[330294876,1719235633934,153.0,0.00022493,120]
[330294877,1719235634351,153.0,0.00022493,120]
[330294878,1719235634842,153.0,0.00022493,120]
[330294879,1719235635322,153.0,0.00022493,120]
[330294880,1719235704347,-207.71530322,0.00014299,2]
[330294881,1719235704381,-469.8686525,0.000143,2]
[330294882,1719235704507,-30.1313475,0.000143,2]
[330294883,1719235704540,-647.45260822,0.00014318,2]
[330294884,1719235704587,-469.9613319,0.00014318,2]
[330294885,1719235729476,-514.18264853,0.00014318,2]
[330294886,1719235729509,-154.82195475,0.00014396,2]
[330294887,1719235729542,-45.08193731,0.00014416,2]
[330294888,1719235729591,-711.56067683,0.00014416,2]
[330294889,1719235729627,-714.08654059,0.00014416,2]
[330294890,1719235751624,500.0,0.00012656,2]
[330294891,1719235753660,500.0,0.00013478,2]
[330294892,1719235754396,-756.88121575,0.00014396,2]
[330294893,1719235754448,-512.63655133,0.00014396,2]
[330294894,1719235782730,157.894736,0.00013699,2]
[330295759,1719235832118,-500.0,0.000143,2]
[330295761,1719235832127,-333.35959484,0.00014326,2]
[330295763,1719235832138,-2421.56428074,0.00014326,2]
[330295782,1719235838757,-1002.68949999,0.00014326,2]
[330295784,1719235838770,-430.61123212,0.00014326,2]
[330295835,1719235840569,-1090.62204501,0.00014326,2]
[330295837,1719235840579,-2040.81356743,0.0001438,2]
[330295839,1719235840589,-2129.2320514,0.00014416,2]
[330295841,1719235840599,-300.0,0.00014433,2]
[330295843,1719235840609,-300.0,0.00014433,2]
[330295845,1719235840619,-3673.11565758,0.00014434,2]
[330295847,1719235840629,-179.13698983,0.00014505,2]
[330295849,1719235840639,-3923.79380923,0.00014553,2]
[330295851,1719235840648,-411.450312,0.000147,2]
[330295853,1719235840658,-154.82195475,0.00014784,2]
[330295855,1719235840668,-6984.61819118,0.000149,2]
[330295857,1719235840679,-1313.011853,0.00014921,2]
[330295859,1719235840691,-639.17012462,0.00014931,2]
[330295861,1719235840702,-151.0,0.00014948,2]
[330295863,1719235840712,-151.0,0.00014948,2]
[330295865,1719235840722,-151.0,0.00014948,2]
[330295867,1719235840732,-151.0,0.00014948,2]
[330295869,1719235840742,-151.0,0.00014948,2]
[330295871,1719235840753,-151.0,0.00014948,2]
[330295873,1719235840763,-159.549192,0.00014948,2]
[330295875,1719235840774,-151.0,0.00014948,2]
[330295877,1719235840784,-151.0,0.00014948,2]
[330295879,1719235840794,-159.784277,0.00014968,2]
[330295881,1719235840804,-151.0,0.00014968,2]
[330295883,1719235840814,-1487.2316115,0.00014999,2]
[330295885,1719235840824,-151.0,0.00014999,2]
[330295887,1719235840834,-151.0,0.00014999,2]
[330295889,1719235840844,-1000.0,0.00014999,2]
[330295891,1719235840854,-1000.0,0.00014999,2]
[330295893,1719235840864,-1000.0,0.00014999,2]
[330295895,1719235840875,-151.0,0.00014999,2]
[330295897,1719235840886,-151.0,0.00014999,2]
[330295899,1719235840897,-3374.65646616,0.00015,2]
[330296000,1719235843852,-2040.81356743,0.00014325,2]
[330296003,1719235843862,-1831.31032475,0.00014544,2]
[330296007,1719235843873,-2092.48348448,0.00014544,2]
[330296009,1719235843883,-4926.1665505,0.00015,2]
[330296016,1719235844069,-8384.11284483,0.00015,2]
[330296019,1719235846807,-4444.37835935,0.00015,2]
[330296020,1719235871456,500.0,0.00012656,2]
[330296021,1719235994288,3000.0,0.000225,30]
[330296030,1719236094646,1000.12415526,0.00016192,7]
[330296032,1719236224490,166.855949,0.00013895,2]
[330296034,1719236237586,90497.7177708,0.00025,60]
[330296035,1719236237612,73290.30978706,0.00025,60]
[330296036,1719236369187,157.894736,0.00013699,2]
[330296037,1719236597163,3000.0,0.000225,30]
[330296049,1719236942926,157.894736,0.00013699,2]
[330296099,1719237040731,-2040.81356743,0.00014031,2]
[330296101,1719237040742,-300.0,0.00014199,2]
[330296103,1719237040752,-500.0,0.000143,2]
[330296104,1719237040762,-11118.98907716,0.00014318,2]
[330296105,1719237040772,-10562.28786365,0.00014434,2]
[330296106,1719237040782,-1487.2316115,0.00014505,2]
[330296107,1719237040792,-1117.74863961,0.00014541,2]
[330296108,1719237040802,-309.47387046,0.00014544,2]
[330296109,1719237040812,-154.85288975,0.00014628,2]
[330296110,1719237040823,-154.85288975,0.00014628,2]
[330296111,1719237040833,-399.88338465,0.00014643,2]
[330296112,1719237040843,-271.32677426,0.00014649,2]
[330296113,1719237040853,-222.37848584,0.0001465,2]
[330296114,1719237040863,-154.91045393,0.0001465,2]
[330296115,1719237040873,-5278.8466527,0.0001467,2]
[330296116,1719237040883,-410.7817352,0.000147,2]
[330296117,1719237040892,-154.85288975,0.00014754,2]
[330296118,1719237040902,-2283.76094141,0.00014754,2]
[330296119,1719237040912,-211.66371731,0.00014899,2]
[330296120,1719237040922,-2885.43497636,0.00014921,2]
[330296121,1719237040937,-787.68068122,0.00014921,2]
[330296122,1719237040947,-155.2911929,0.00014948,2]
[330296123,1719237040956,-9601.79213166,0.00014948,2]
[330296124,1719237040966,-3923.79380923,0.00014948,2]
[330296125,1719237040976,-1313.011853,0.00014964,2]
[330296126,1719237040986,-1000.0,0.00014996,2]
[330296128,1719237040995,-2647.51345546,0.00014996,2]
[330296129,1719237041005,-826.00184508,0.00014997,2]
[330296155,1719237046864,-154.85288975,0.0001465,2]
[330296156,1719237046874,-206.20542286,0.00014699,2]
[330296157,1719237046883,-154.435896,0.00014964,2]
[330296158,1719237046892,-4910.87508492,0.00014997,2]
[330296159,1719237046905,-4808.84324241,0.00014997,2]
[330296160,1719237046914,-151.0,0.00014997,2]
[330296161,1719237046924,-151.0,0.00014997,2]
[330296162,1719237046937,-151.0,0.00014997,2]
[330296163,1719237046946,-151.0,0.00014997,2]
[330296164,1719237046959,-151.0,0.00014997,2]
[330296165,1719237046969,-151.0,0.00014997,2]
[330296166,1719237046978,-151.0,0.00014997,2]
[330296167,1719237046987,-154.435896,0.00014997,2]
[330296168,1719237046996,-1000.0,0.00014999,2]
[330296169,1719237047005,-82.16713447,0.00014999,2]
[330296173,1719237193773,3000.0,0.000225,30]
[330296174,1719237537617,157.894736,0.00013699,2]
[330296177,1719237580998,5259.95166002,0.0002,10]
[330296178,1719237590613,10000.0,0.000225,30]
[330296179,1719237605924,7882.0,0.000225,30]
[330296181,1719237794519,3000.0,0.000225,30]
[330296182,1719237935654,238.2625579,0.00013699,2]
[330296185,1719238133716,-414.90198522,0.00014026,2]
[330296186,1719238157930,157.894736,0.00013699,2]
[330296199,1719238234612,-85.09801478,0.00014026,2]
[330296200,1719238234622,-154.85288975,0.00014147,2]
[330296202,1719238234631,-6972.7816651,0.00014543,2]
[330296204,1719238234640,-627.00448647,0.00014544,2]
[330296206,1719238234649,-457.45943987,0.00014544,2]
[330296208,1719238234658,-5278.8466527,0.00014583,2]
[330296210,1719238234667,-549.71041124,0.00014742,2]
[330296211,1719238234677,-990.65106447,0.00014742,2]
[330296214,1719238234690,-300.0,0.00014743,2]
[330296216,1719238234699,-300.0,0.00014743,2]
[330296218,1719238234708,-154.85288975,0.00014744,2]
[330296220,1719238234718,-159.35965211,0.00014744,2]
[330296222,1719238234727,-565.7746747,0.00014754,2]
[330296223,1719238234737,-154.85288975,0.00014754,2]
[330296224,1719238234746,-208.78500633,0.00014856,2]
[330296225,1719238234758,-620.95850623,0.00014894,2]
[330296226,1719238234768,-910.07797715,0.00014899,2]
[330296244,1719238234937,-545.87563572,0.00014899,2]
[330296246,1719238234948,-1599.47520392,0.00014899,2]
[330296248,1719238234957,-5420.0679197,0.000149,2]
[330296250,1719238234969,-34600.81124187,0.000149,2]
[330296289,1719238239152,-164.81209326,0.00014754,2]
[330296290,1719238239163,-3385.67052368,0.000149,2]
[330296291,1719238239176,-479.20170095,0.000149,2]
[330296320,1719238241494,-7370.91453283,0.000149,2]
[330296321,1719238241506,-16283.09081804,0.000149,2]
[330296322,1719238241516,-153.0,0.000149,2]
[330296323,1719238241526,-1000.0,0.00014999,2]
[330296324,1719238241536,-1000.0,0.00014999,2]
[330296325,1719238241546,-1000.0,0.00014999,2]
[330296326,1719238241555,-199.73583523,0.00014999,2]
[330296327,1719238241566,-33152.14399544,0.00014999,2]
[330296328,1719238241576,-17733.26496203,0.00015,2]
[330296329,1719238241587,-677.93214281,0.00015,2]
[330296330,1719238241597,-10582.25432098,0.00015,2]
[330296418,1719238247003,-627.00448647,0.00014543,2]
[330296419,1719238247012,-154.85288975,0.00014742,2]
[330296421,1719238247022,-358.38513289,0.00015,2]
[330296460,1719238397031,3000.0,0.000225,30]
[330296478,1719238491215,16679.0029713,0.00013974,2]
[330296482,1719238539362,250.0,0.00013938,2]
[330296488,1719238699256,157.894736,0.00013699,2]
[330296490,1719238708752,1794.41,0.00025,60]
[330296494,1719239000174,3000.0,0.000225,30]
[330296495,1719239010348,649.12,0.000224,31]
[330296496,1719239010413,649.12,0.000224,31]
[330296497,1719239010460,649.12,0.000224,31]
[330296498,1719239010535,649.12,0.000224,31]
[330296499,1719239010594,649.12,0.000224,31]
[330296500,1719239010757,649.12,0.000224,31]
[330296501,1719239010810,649.12,0.000224,31]
[330296502,1719239010865,649.12,0.000224,31]
[330296503,1719239010914,649.12,0.000224,31]
[330296504,1719239010969,649.12,0.000224,31]
[330296505,1719239011016,649.12,0.000224,31]
[330296506,1719239011074,649.12,0.000224,31]
[330296507,1719239011129,649.12,0.000224,31]
[330296508,1719239011178,649.12,0.000224,31]
[330296509,1719239011236,649.12,0.000224,31]
[330296510,1719239011285,649.12,0.000224,31]
[330296511,1719239011335,649.12,0.000224,31]
[330296512,1719239011390,649.12,0.000224,31]
[330296513,1719239011445,649.12,0.000224,31]
[330296514,1719239011525,649.12,0.000224,31]
[330296515,1719239019339,10000.0,0.000225,30]
[330296516,1719239026921,155.0,0.000225,30]
[330296517,1719239031623,155.0,0.000225,30]
[330296518,1719239036166,155.0,0.000225,30]
[330296519,1719239041052,155.0,0.000225,30]
[330296521,1719239045620,155.0,0.000225,30]
[330296522,1719239051361,155.0,0.000225,30]
[330296523,1719239056507,155.0,0.000225,30]
[330296524,1719239060933,155.0,0.000225,30]
[330296525,1719239065559,155.0,0.000225,30]
[330296526,1719239070074,155.0,0.000225,30]
[330296527,1719239075030,155.0,0.000225,30]
[330296528,1719239079703,155.0,0.000225,30]
[330296529,1719239084450,250.16212131,0.000225,30]
[330296605,1719239294640,157.894736,0.00013699,2]
[330296607,1719239361565,-369.80235323,0.00014026,2]